bitfinex-derivatives/quotes_BTCF0:USTF0_20250503
["timestamp","ask_amount","ask_price","bid_price","bid_amount"]
[1746276609422,0.35628804,96172.0,96171.0,0.2403109]
[1746276623027,0.35628804,96172.0,96171.0,0.0324]
[1746276623431,0.35628804,96172.0,96171.0,0.2403109]
[1746276642941,0.35628804,96172.0,96171.0,0.0324]
[1746276643144,0.35628804,96172.0,96171.0,0.2403109]
[1746276668168,0.3561087,96172.0,96171.0,0.2403109]
[1746276670369,0.35628804,96172.0,96171.0,0.2403109]
[1746276675382,0.35628804,96172.0,96171.0,0.2725109]
[1746276704010,0.35628804,96172.0,96171.0,0.0646]
[1746276704204,0.35628804,96172.0,96171.0,0.0324]
[1746276704703,0.38718804,96172.0,96171.0,0.0324]
[1746276704904,0.38718804,96172.0,96171.0,0.2403109]
[1746276711922,0.35628804,96172.0,96171.0,0.2403109]
[1746276717220,0.23828804,96172.0,96171.0,0.2403109]
[1746276720314,0.23828804,96172.0,96171.0,0.2721109]
[1746276735630,0.23828804,96172.0,96171.0,0.0318]
[1746276736727,0.23828804,96172.0,96171.0,0.2397109]
[1746276738930,0.23828804,96172.0,96171.0,0.2726109]
[1746276739940,0.23828804,96172.0,96171.0,0.0329]
[1746276740737,0.23828804,96172.0,96170.0,0.0315]
[1746276740940,0.2725109,96171.0,96170.0,0.0315]
[1746276741627,0.2725109,96171.0,96170.0,0.239413]
[1746276743932,0.2725109,96171.0,96170.0,0.272513]
[1746276747939,0.27268865,96171.0,96170.0,0.272513]
[1746276782981,0.27268865,96171.0,96170.0,0.0646]
[1746276783181,0.27268865,96171.0,96170.0,0.0331]
[1746276783370,0.2079325,96161.0,96160.0,0.15827527]
[1746276784072,0.2079519,96152.0,96140.0,0.26394341]
[1746276784272,0.5687519,96152.0,96140.0,0.26394341]
[1746276784578,0.67275591,96152.0,96140.0,0.26394341]
[1746276785079,0.79075591,96152.0,96143.0,0.2079702]
[1746276785279,0.85375591,96152.0,96142.0,0.0519932]
[1746276785581,0.85275591,96152.0,96144.0,0.2079681]
[1746276785782,0.2079606,96148.0,96144.0,0.2079681]
[1746276786173,0.4269686,96148.0,96145.0,0.2079664]
[1746276786577,0.4269686,96148.0,96143.0,0.2079702]
[1746276786778,0.4869686,96148.0,96143.0,0.2079702]
[1746276787175,0.3829606,96148.0,96147.0,0.0035601]
[1746276787681,0.3829606,96148.0,96147.0,0.0045601]
[1746276792984,0.3849606,96148.0,96147.0,0.0035601]
[1746276793684,0.7457606,96148.0,96147.0,0.0035601]
[1746276794184,0.2079844,96137.0,96136.0,0.0305]
[1746276794686,0.2079974,96131.0,96130.0,0.5687987]
[1746276794881,0.2079974,96131.0,96130.0,0.5987987]
[1746276796389,0.2079974,96131.0,96130.0,0.5997987]
[1746276797683,0.2079974,96131.0,96130.0,0.3918]
[1746276803798,0.2079974,96131.0,96130.0,0.031]
[1746276804189,0.3259974,96131.0,96130.0,0.031]
[1746276808098,0.3259974,96131.0,96130.0,0.2389995]
[1746276808392,0.3259974,96131.0,96130.0,0.031]
[1746276809093,0.3259974,96131.0,96130.0,0.2389995]
[1746276811591,0.3259974,96131.0,96130.0,0.031]
[1746276812291,0.3259974,96131.0,96130.0,0.0636]
[1746276817097,0.2079974,96131.0,96130.0,0.0636]
[1746276818293,0.2079974,96131.0,96130.0,0.2715995]
[1746276822002,0.2079974,96131.0,96130.0,0.2389995]
[1746276826198,0.2099974,96131.0,96130.0,0.2379995]
[1746276826400,0.2109974,96131.0,96130.0,0.2379995]
[1746276827007,0.2099974,96131.0,96130.0,0.2379995]
[1746276827307,0.2109974,96131.0,96130.0,0.2379995]
[1746276827501,0.2109974,96131.0,96130.0,0.2679995]
[1746276827901,0.2109974,96131.0,96130.0,0.2995995]
[1746276831306,0.2109974,96131.0,96130.0,0.2695995]
[1746276831909,0.2109974,96131.0,96130.0,0.2379995]
[1746276836912,0.2748974,96131.0,96130.0,0.2379995]
[1746276842419,0.003,96131.0,96130.0,0.2879995]
[1746276842611,0.003,96131.0,96130.0,0.3210995]
[1746276843213,0.003,96131.0,96130.0,0.4390995]
[1746276844316,0.2109974,96131.0,96130.0,0.4390995]
[1746276845703,0.003,96131.0,96130.0,0.4390995]
[1746276852020,0.003,96131.0,96130.0,0.7998995]
[1746276855123,0.003,96131.0,96130.0,0.6818995]
[1746276856124,0.003,96131.0,96130.0,0.7998995]
[1746276858256,0.003,96131.0,96130.0,0.6818995]
[1746276858923,0.0354,96131.0,96130.0,0.6818995]
[1746276861817,0.003,96131.0,96130.0,0.6818995]
[1746276864730,0.0358,96131.0,96130.0,0.6818995]
[1746276870332,0.0358,96131.0,96130.0,0.6487995]
[1746276874636,0.0358,96131.0,96130.0,0.6983209]
[1746276875134,0.0358,96131.0,96130.0,0.6487995]
[1746276876437,0.0358,96131.0,96130.0,0.6187995]
[1746276876637,0.0358,96131.0,96130.0,0.5687995]
[1746276877135,0.3617974,96131.0,96130.0,0.5687995]
[1746276879037,0.2080082,96126.0,96125.0,0.20905071]
[1746276879833,0.2714082,96126.0,96125.0,0.20905071]
[1746276880238,0.4414107,96126.0,96125.0,0.2080104]
[1746276880439,0.4424107,96126.0,96125.0,0.2080104]
[1746276880643,0.3904082,96126.0,96125.0,0.2080104]
[1746276882843,0.3904082,96126.0,96125.0,0.2380104]
[1746276883342,0.2724082,96126.0,96125.0,0.2380104]
[1746276894264,0.2724082,96126.0,96125.0,0.2704104]
[1746276895159,0.3904082,96126.0,96125.0,0.2704104]
[1746276895562,0.3904082,96126.0,96125.0,0.2404104]
[1746276896160,0.0644,96126.0,96125.0,0.2404104]
[1746276896666,0.2724082,96126.0,96125.0,0.2404104]
[1746276897164,0.3904082,96126.0,96125.0,0.2404104]
[1746276898267,0.2724082,96126.0,96125.0,0.2404104]
[1746276914775,0.2724082,96126.0,96118.0,0.15841023]
[1746276914776,0.1164021,96126.0,96118.0,0.15841023]
[1746276914979,0.208019,96121.0,96120.0,0.5688199]
[1746276915182,0.208019,96121.0,96120.0,0.6013199]
[1746276915577,0.208019,96121.0,96120.0,0.6313199]
[1746276915776,0.272119,96121.0,96120.0,0.6313199]
[1746276915977,0.272119,96121.0,96120.0,0.6023199]
[1746276916575,0.272119,96121.0,96120.0,0.6323199]
[1746276917282,0.272119,96121.0,96120.0,0.6023199]
[1746276919583,0.272119,96121.0,96120.0,0.3943]
[1746276920686,0.272119,96121.0,96120.0,0.6023212]
[1746276921985,0.272119,96121.0,96120.0,0.2415212]
[1746276947589,0.273119,96121.0,96120.0,0.2415212]
[1746276949504,0.273119,96121.0,96120.0,0.0325]
[1746276966913,0.273119,96121.0,96120.0,0.2405212]
[1746276969617,0.323119,96121.0,96120.0,0.2405212]
[1746276980239,0.273119,96121.0,96120.0,0.2405212]
[1746276985947,0.001,96121.0,96120.0,0.2805212]
[1746276986147,0.001,96121.0,96120.0,0.3985212]
[1746276988749,0.001,96121.0,96120.0,0.158]
[1746276989342,0.001,96121.0,96120.0,0.47005719]
[1746276989544,0.001,96121.0,96120.0,1.09959563]
[1746276991749,0.001,96121.0,96120.0,1.13219563]
[1746276992248,0.001,96121.0,96120.0,0.88219563]
[1746276994550,0.001,96121.0,96120.0,0.77815964]
[1746276994748,0.001,96121.0,96120.0,0.80855964]
[1746276998853,0.001,96121.0,96120.0,1.53015964]
[1746277000451,0.001,96121.0,96120.0,1.16935964]
[1746277000656,0.001,96121.0,96120.0,1.53015964]
[1746277001057,0.001,96121.0,96120.0,1.68835833]
[1746277001457,0.001,96121.0,96120.0,1.63881989]
[1746277004761,0.001,96121.0,96120.0,1.4806212]
[1746277009059,0.001,96121.0,96120.0,0.7590212]
[1746277009254,0.001,96121.0,96120.0,1.4806212]
[1746277010063,0.001,96121.0,96120.0,1.58465719]
[1746277010461,0.001,96121.0,96120.0,0.86305719]
[1746277010653,0.001,96121.0,96120.0,1.21465719]
[1746277010853,0.001,96121.0,96120.0,1.60465719]
[1746277011363,0.001,96121.0,96120.0,1.65413085]
[1746277012065,0.001,96121.0,96120.0,1.4702212]
[1746277012251,0.001,96121.0,96120.0,1.3196212]
[1746277014060,0.001,96121.0,96120.0,1.1496212]
[1746277015769,0.001,96121.0,96120.0,1.1815212]
[1746277016960,0.001,96121.0,96120.0,1.1496212]
[1746277020064,0.001,96121.0,96120.0,0.7888212]
[1746277023675,0.001,96121.0,96120.0,0.4280212]
[1746277023875,0.001,96121.0,96120.0,0.7888212]
[1746277025080,0.001,96121.0,96120.0,0.89285719]
[1746277025270,0.001,96121.0,96120.0,0.7888212]
[1746277028879,0.001,96121.0,96120.0,0.4280212]
[1746277029178,0.001,96121.0,96120.0,0.7888212]
[1746277035379,0.001,96121.0,96120.0,0.83836546]
[1746277036980,0.001,96121.0,96120.0,0.63034426]
[1746277037480,0.001,96121.0,96120.0,0.66064426]
[1746277037681,0.001,96121.0,96120.0,0.86866546]
[1746277040782,0.0631,96124.0,96123.0,0.2080147]
[1746277040982,0.0631,96124.0,96123.0,0.4580147]
[1746277041783,0.0631,96124.0,96123.0,0.50755896]
[1746277041988,0.0641,96124.0,96123.0,0.50755896]
[1746277042485,0.0641,96124.0,96123.0,0.4887147]
[1746277043286,0.0651,96124.0,96123.0,0.4887147]
[1746277044376,0.0651,96124.0,96123.0,0.8495147]
[1746277044685,0.0651,96124.0,96123.0,1.00804805]
[1746277045280,0.0651,96124.0,96123.0,0.64724805]
[1746277045478,0.0651,96124.0,96123.0,1.00804805]
[1746277045680,0.0651,96124.0,96123.0,1.07060805]
[1746277046182,0.0651,96124.0,96123.0,0.9120747]
[1746277047286,0.0651,96124.0,96123.0,0.96163922]
[1746277050286,0.0651,96124.0,96123.0,0.93093922]
[1746277051491,0.0651,96124.0,96123.0,0.8813747]
[1746277052390,0.0651,96124.0,96123.0,0.93091735]
[1746277058606,0.0651,96124.0,96123.0,0.78091735]
[1746277060302,0.1831,96124.0,96123.0,0.78091735]
[1746277063104,0.0651,96124.0,96123.0,0.78091735]
[1746277063801,0.0345,96124.0,96123.0,0.78091735]
[1746277064002,0.002,96124.0,96123.0,0.78091735]
[1746277064212,0.002,96124.0,96123.0,0.81271735]
[1746277065115,0.002,96124.0,96123.0,0.93071735]
[1746277069228,0.002,96124.0,96123.0,0.84461735]
[1746277073231,0.003,96124.0,96123.0,1.20541735]
[1746277075840,0.003,96124.0,96123.0,1.41675887]
[1746277079539,0.003,96124.0,96123.0,1.20541735]
[1746277086930,0.003,96124.0,96123.0,1.41654942]
[1746277093739,0.003,96124.0,96123.0,1.20541735]
[1746277095342,0.0347,96124.0,96123.0,1.20541735]
[1746277101145,0.0347,96124.0,96123.0,1.32341735]
[1746277106156,0.0347,96124.0,96123.0,1.20541735]
[1746277108157,0.0347,96124.0,96123.0,1.32341735]
[1746277109255,0.0347,96124.0,96123.0,1.20541735]
[1746277110355,0.0313,96135.0,96123.0,0.99740265]
[1746277110551,0.0313,96135.0,96134.0,0.5687909]
[1746277110752,0.0313,96135.0,96134.0,0.71833355]
[1746277111158,0.1493,96135.0,96134.0,0.71833355]
[1746277111353,0.1493,96135.0,96134.0,0.72864077]
[1746277111855,0.1533,96135.0,96134.0,0.72864077]
[1746277113253,0.0353,96135.0,96134.0,0.72864077]
[1746277113751,0.0672,96135.0,96134.0,0.79116077]
[1746277113952,0.0672,96135.0,96134.0,0.82326077]
[1746277116163,0.1852,96135.0,96134.0,0.82326077]
[1746277117255,0.0672,96135.0,96134.0,0.82326077]
[1746277118156,0.0672,96135.0,96134.0,0.98170426]
[1746277122458,0.0672,96135.0,96134.0,0.82326077]
[1746277129770,0.0672,96135.0,96134.0,0.77371812]
[1746277139582,0.0672,96135.0,96134.0,0.82325781]
[1746277139880,0.0672,96135.0,96134.0,0.77371812]
[1746277143889,0.0682,96135.0,96134.0,0.82327226]
[1746277144887,0.0642,96135.0,96134.0,0.82327226]
[1746277145095,0.0662,96135.0,96134.0,0.82327226]
[1746277145591,0.0642,96135.0,96134.0,0.82327226]
[1746277145791,0.0662,96135.0,96134.0,0.82327226]
[1746277157002,0.0662,96135.0,96134.0,0.77371812]
[1746277157203,0.0662,96135.0,96134.0,0.93223789]
[1746277158804,0.0662,96135.0,96134.0,0.57143789]
[1746277159101,0.0662,96135.0,96134.0,0.93223789]
[1746277160304,0.0662,96135.0,96134.0,0.57143789]
[1746277160499,0.0662,96135.0,96134.0,0.93223789]
[1746277160700,0.0662,96135.0,96134.0,0.77371812]
[1746277162797,0.0662,96135.0,96134.0,0.41291812]
[1746277162998,0.0662,96135.0,96134.0,0.77371812]
[1746277163707,0.0662,96135.0,96134.0,0.82328228]
[1746277168811,0.0662,96135.0,96134.0,0.77371812]
[1746277169611,0.0662,96135.0,96134.0,0.80381812]
[1746277177116,0.0662,96135.0,96134.0,0.85337866]
[1746277177710,0.0343,96135.0,96134.0,0.85337866]
[1746277180014,0.0343,96135.0,96134.0,1.01189843]
[1746277183315,0.0343,96135.0,96134.0,0.85337866]
[1746277185818,0.003,96135.0,96134.0,0.85337866]
[1746277190117,0.003,96135.0,96134.0,0.97137866]
[1746277191126,0.003,96135.0,96134.0,0.85337866]
[1746277201235,0.003,96135.0,96134.0,0.87137866]
[1746277201428,0.003,96135.0,96134.0,1.21137866]
[1746277201928,0.003,96135.0,96134.0,1.31539866]
[1746277202335,0.0621,96152.0,96151.0,0.2079541]
[1746277202539,0.07955504,96154.0,96151.0,0.2079541]
[1746277202540,0.07955504,96154.0,96153.0,0.2079498]
[1746277202727,0.0301,96159.0,96155.0,0.2079455]
[1746277202927,0.0301,96159.0,96155.0,0.2579455]
[1746277203427,0.0301,96159.0,96155.0,0.2681742]
[1746277204929,0.006,96156.0,96155.0,0.2681742]
[1746277205738,0.007,96156.0,96155.0,0.2681742]
[1746277205925,0.007,96156.0,96155.0,0.3012742]
[1746277206130,0.007,96156.0,96155.0,0.4192742]
[1746277207138,0.007,96156.0,96155.0,0.3012742]
[1746277208025,0.008,96156.0,96155.0,0.3012742]
[1746277208237,0.008,96156.0,96155.0,0.0933287]
[1746277208440,0.008,96156.0,96155.0,0.3012742]
[1746277208635,0.007,96156.0,96155.0,0.3012742]
[1746277212133,0.007,96156.0,96155.0,0.6620742]
[1746277212538,0.007,96156.0,96155.0,0.6946742]
[1746277213840,0.007,96156.0,96155.0,0.7570742]
[1746277215730,0.017,96156.0,96155.0,0.7070742]
[1746277215933,0.007,96156.0,96155.0,0.7239742]
[1746277216134,0.007,96156.0,96155.0,0.6739742]
[1746277216336,0.007,96156.0,96155.0,0.7239742]
[1746277219244,0.007,96156.0,96155.0,0.7559742]
[1746277223443,0.0387,96156.0,96155.0,0.7559742]
[1746277223946,0.0387,96156.0,96155.0,0.9259742]
[1746277229951,0.007,96156.0,96155.0,0.9259742]
[1746277232350,0.125,96156.0,96155.0,0.9259742]
[1746277232653,0.125,96156.0,96155.0,0.97541679]
[1746277232853,0.124,96156.0,96155.0,0.97541679]
[1746277237741,0.1571,96156.0,96155.0,0.97541679]
[1746277242044,0.124,96156.0,96155.0,0.97541679]
[1746277247557,0.124,96156.0,96155.0,1.33621679]
[1746277247749,0.1554,96156.0,96155.0,1.33621679]
[1746277249160,0.1554,96156.0,96155.0,1.54715864]
[1746277253060,0.1554,96156.0,96155.0,1.33621679]
[1746277253655,0.1534,96156.0,96155.0,1.33621679]
[1746277254660,0.1504,96156.0,96155.0,1.33621679]
[1746277255363,0.1504,96156.0,96155.0,1.30421679]
[1746277255661,0.1504,96156.0,96155.0,1.04134809]
[1746277255855,0.1831,96156.0,96155.0,0.6911055]
[1746277256660,0.1831,96156.0,96155.0,0.74065694]
[1746277259560,0.1831,96156.0,96155.0,0.77245694]
[1746277259953,0.1831,96156.0,96155.0,0.77241694]
[1746277262253,0.1831,96156.0,96155.0,0.71241694]
[1746277264163,0.1831,96156.0,96155.0,0.74241694]
[1746277265670,0.1831,96156.0,96155.0,0.6928655]
[1746277267167,0.1831,96156.0,96155.0,0.6628655]
[1746277268568,0.1831,96156.0,96155.0,0.82130817]
[1746277269367,0.1831,96156.0,96155.0,0.87085043]
[1746277269665,0.1831,96156.0,96155.0,0.92085043]
[1746277269967,0.1831,96156.0,96155.0,0.56005043]
[1746277270167,0.1831,96156.0,96155.0,0.92085043]
[1746277274070,0.1831,96156.0,96155.0,0.87085043]
[1746277274269,0.1831,96156.0,96155.0,0.92085043]
[1746277275071,0.1831,96156.0,96155.0,0.87085043]
[1746277276370,0.1831,96156.0,96155.0,0.90085043]
[1746277276672,0.1831,96156.0,96155.0,0.87085043]
[1746277277469,0.1831,96156.0,96155.0,0.90085043]
[1746277277863,0.1831,96156.0,96155.0,0.87085043]
[1746277278772,0.1831,96156.0,96155.0,0.91085043]
[1746277279270,0.1831,96156.0,96155.0,0.87085043]
[1746277279872,0.1831,96156.0,96155.0,0.91085043]
[1746277280062,0.0651,96156.0,96155.0,0.91085043]
[1746277280263,0.0651,96156.0,96155.0,0.87085043]
[1746277280473,0.0651,96156.0,96155.0,0.92085043]
[1746277281171,0.1831,96156.0,96155.0,0.87085043]
[1746277281372,0.1831,96156.0,96155.0,0.92085043]
[1746277284772,0.1504,96156.0,96155.0,0.92085043]
[1746277285666,0.1504,96156.0,96155.0,0.95195043]
[1746277285866,0.1504,96156.0,96155.0,0.79350776]
[1746277287275,0.1504,96156.0,96155.0,0.74350776]
[1746277287673,0.1504,96156.0,96155.0,0.79350776]
[1746277290167,0.0324,96156.0,96155.0,0.79350776]
[1746277295266,0.001,96156.0,96155.0,0.79350776]
[1746277296684,0.001,96156.0,96155.0,0.79450776]
[1746277302288,0.001,96156.0,96155.0,1.00584819]
[1746277305681,0.001,96156.0,96155.0,0.79450776]
[1746277307482,0.001,96156.0,96155.0,0.58656226]
[1746277308386,0.001,96156.0,96155.0,0.79450776]
[1746277312690,0.001,96156.0,96155.0,1.36430776]
[1746277312890,0.001,96156.0,96155.0,1.36530776]
[1746277313294,0.001,96156.0,96155.0,1.36430776]
[1746277313591,0.001,96156.0,96155.0,1.36530776]
[1746277318190,0.119,96156.0,96155.0,1.36530776]
[1746277319097,0.001,96156.0,96155.0,1.36530776]
[1746277320096,0.001,96156.0,96155.0,1.30298776]
[1746277320403,0.001,96156.0,96155.0,1.36530776]
[1746277321201,0.119,96156.0,96155.0,1.36530776]
[1746277322098,0.001,96156.0,96155.0,1.36530776]
[1746277324399,0.119,96156.0,96155.0,1.36530776]
[1746277325906,0.1493,96156.0,96155.0,1.36530776]
[1746277326604,0.119,96156.0,96155.0,1.36530776]
[1746277328207,0.1521,96156.0,96155.0,1.36530776]
[1746277329907,0.1521,96156.0,96155.0,1.33420776]
[1746277330106,0.1823,96156.0,96155.0,1.33420776]
[1746277332516,0.1823,96156.0,96155.0,1.54562685]
[1746277336331,0.1823,96156.0,96155.0,1.33420776]
[1746277336531,0.1823,96156.0,96155.0,1.27188776]
[1746277336731,0.1823,96156.0,96155.0,1.24008776]
[1746277337029,0.1823,96156.0,96155.0,1.30240776]
[1746277338130,0.1823,96156.0,96155.0,1.33430776]
[1746277346333,0.0643,96156.0,96155.0,1.33430776]
[1746277347338,0.1823,96156.0,96155.0,1.33430776]
[1746277350136,0.0643,96156.0,96155.0,1.33430776]
[1746277351033,0.0643,96156.0,96155.0,0.67134226]
[1746277351232,0.2079519,96152.0,96151.0,0.21141909]
[1746277351433,0.21841132,96152.0,96151.0,0.16151909]
[1746277351630,0.57241533,96152.0,96151.0,0.16151909]
[1746277352031,0.63761533,96152.0,96151.0,0.16151909]
[1746277352240,0.75561533,96152.0,96151.0,0.36947319]
[1746277353136,0.74515591,96152.0,96151.0,0.36947319]
[1746277354241,0.49515591,96152.0,96151.0,0.36947319]
[1746277357237,0.49715591,96152.0,96151.0,0.36947319]
[1746277357644,0.49715591,96152.0,96151.0,0.2079541]
[1746277359144,0.2599501,96150.0,96149.0,0.2079574]
[1746277359542,0.42745411,96150.0,96149.0,0.2079574]
[1746277360246,0.54545411,96150.0,96149.0,0.2079574]
[1746277360440,0.54645411,96150.0,96149.0,0.2079574]
[1746277361944,0.54745411,96150.0,96149.0,0.2079574]
[1746277362442,0.90825411,96150.0,96149.0,0.2079574]
[1746277363450,0.2079606,96148.0,96147.0,0.2079614]
[1746277363947,0.3119686,96148.0,96147.0,0.2079614]
[1746277364151,0.4954686,96148.0,96147.0,0.2079614]
[1746277365752,0.2079844,96137.0,96136.0,0.0625]
[1746277366145,0.3259844,96137.0,96136.0,0.0625]
[1746277366652,0.3896844,96137.0,96136.0,0.0625]
[1746277368054,0.3896844,96137.0,96136.0,0.2704866]
[1746277369945,0.4096844,96137.0,96136.0,0.2704866]
[1746277374656,0.3896844,96137.0,96136.0,0.2704866]
[1746277376057,0.3996844,96137.0,96136.0,0.2704866]
[1746277380760,0.3685844,96137.0,96136.0,0.2704866]
[1746277381060,0.3359844,96137.0,96136.0,0.2704866]
[1746277382261,0.3259844,96137.0,96136.0,0.2704866]
[1746277410564,0.3259844,96137.0,96136.0,0.3304866]
[1746277410768,0.3259844,96137.0,96136.0,0.2704866]
[1746277413182,0.2079844,96137.0,96136.0,0.2704866]
[1746277418184,0.3259844,96137.0,96136.0,0.2704866]
[1746277418580,0.3559844,96137.0,96136.0,0.2704866]
[1746277423387,0.3569844,96137.0,96136.0,0.2704866]
[1746277427690,0.3569844,96137.0,96136.0,0.0625]
[1746277428597,0.3569844,96137.0,96136.0,0.2704866]
[1746277429197,0.3569844,96137.0,96136.0,0.0625]
[1746277434198,0.2389844,96137.0,96136.0,0.0625]
[1746277435189,0.3569844,96137.0,96136.0,0.0625]
[1746277437403,0.3569844,96137.0,96136.0,0.2704866]
[1746277439106,0.2389844,96137.0,96136.0,0.2704866]
[1746277440606,0.2289844,96137.0,96136.0,0.2704866]
[1746277461818,0.2289844,96137.0,96136.0,0.08342418]
[1746277465723,0.2289844,96137.0,96136.0,0.14352418]
[1746277470321,0.001,96137.0,96136.0,0.50432418]
[1746277470511,0.001,96137.0,96136.0,1.06834418]
[1746277470716,0.2599391,96154.0,96151.0,0.051988]
[1746277470925,0.2599391,96154.0,96153.0,0.2079498]
[1746277471121,0.0329,96172.0,96154.0,0.2079476]
[1746277471325,0.0311,96161.0,96154.0,0.2679476]
[1746277471530,0.0311,96161.0,96154.0,0.3327476]
[1746277471716,0.2079378,96159.0,96154.0,0.3327476]
[1746277472227,0.2079397,96158.0,96154.0,0.4507476]
[1746277472427,0.0519839,96160.0,96154.0,0.4507476]
[1746277472927,0.2079418,96157.0,96154.0,0.4507476]
[1746277473125,0.2079381,96159.0,96155.0,0.2079455]
[1746277473428,0.2079357,96160.0,96155.0,0.3514455]
[1746277473630,0.2079373,96159.0,96155.0,0.3514455]
[1746277473829,0.20794,96158.0,96155.0,0.3843455]
[1746277474134,0.20794,96158.0,96155.0,0.5023455]
[1746277474429,0.20794,96158.0,96155.0,2.0023455]
[1746277475320,0.2079413,96157.0,96155.0,2.0023455]
[1746277475523,0.005,96156.0,96155.0,2.0023455]
[1746277476029,0.001,96156.0,96155.0,2.0033455]
[1746277476232,0.001,96156.0,96155.0,2.0043455]
[1746277477533,0.001,96156.0,96155.0,2.3651455]
[1746277494341,0.001,96156.0,96155.0,2.0043455]
[1746277494538,0.001,96156.0,96155.0,2.3651455]
[1746277497142,0.001,96156.0,96155.0,2.2471455]
[1746277497448,0.001,96156.0,96155.0,2.0392]
[1746277497743,0.001,96156.0,96155.0,2.2471455]
[1746277499139,0.0341,96156.0,96155.0,2.2471455]
[1746277507548,0.001,96156.0,96155.0,2.2160455]
[1746277507745,0.0332,96164.0,96163.0,0.2079282]
[1746277507939,0.0332,96164.0,96163.0,0.8101726]
[1746277508345,0.0332,96164.0,96163.0,0.9052726]
[1746277508946,0.0342,96164.0,96163.0,0.9052726]
[1746277509351,0.0352,96164.0,96163.0,0.9052726]
[1746277513153,0.0352,96164.0,96163.0,0.5444726]
[1746277513349,0.0352,96164.0,96163.0,1.2660726]
[1746277515256,0.0352,96164.0,96163.0,1.2168682]
[1746277518065,0.03536655,96164.0,96163.0,1.2168682]
[1746277520958,0.06546655,96164.0,96163.0,1.2168682]
[1746277526574,0.03536655,96164.0,96163.0,1.2168682]
[1746277528963,0.03536655,96164.0,96163.0,0.8560682]
[1746277529167,0.03536655,96164.0,96163.0,1.2168682]
[1746277530284,0.18586655,96164.0,96163.0,1.2168682]
[1746277531088,0.06786655,96164.0,96163.0,1.2168682]
[1746277536084,0.18586655,96164.0,96163.0,1.2168682]
[1746277537183,0.06786655,96164.0,96163.0,1.2168682]
[1746277538280,0.01832429,96164.0,96163.0,2.7168682]
[1746277538486,0.0015,96165.0,96164.0,0.207926]
[1746277538687,0.0015,96165.0,96164.0,0.377926]
[1746277538986,0.0015,96165.0,96164.0,0.441026]
[1746277539186,0.1195,96165.0,96164.0,0.441026]
[1746277539690,0.1205,96165.0,96164.0,0.441026]
[1746277539892,0.1215,96165.0,96164.0,0.441026]
[1746277543292,0.0635,96174.0,96164.0,0.2331]
[1746277543482,0.0635,96174.0,96173.0,0.5687065]
[1746277543683,0.0635,96174.0,96173.0,0.65790306]
[1746277544189,0.1815,96174.0,96173.0,0.65790306]
[1746277544496,0.1835,96174.0,96173.0,0.65790306]
[1746277547399,0.1835,96174.0,96173.0,0.66572842]
[1746277549399,0.1835,96174.0,96173.0,0.69852842]
[1746277550301,0.1835,96174.0,96173.0,0.72902842]
[1746277551998,0.1835,96174.0,96173.0,0.69852842]
[1746277558303,0.1835,96174.0,96173.0,0.64933186]
[1746277559102,0.12,96174.0,96173.0,0.64933186]
[1746277559398,0.12,96174.0,96173.0,0.68093186]
[1746277562509,0.12,96174.0,96173.0,0.73011997]
[1746277568713,0.12,96174.0,96173.0,0.68093186]
[1746277570316,0.12,96174.0,96173.0,0.73010111]
[1746277572416,0.12,96174.0,96173.0,0.68093186]
[1746277574126,0.12,96174.0,96173.0,0.73011366]
[1746277577725,0.12,96174.0,96173.0,0.69851366]
[1746277578134,0.1523,96174.0,96173.0,0.69851366]
[1746277583029,0.1523,96174.0,96173.0,0.73041366]
[1746277585529,0.1523,96174.0,96173.0,0.69851366]
[1746277586226,0.1523,96174.0,96173.0,0.40051366]
[1746277586534,0.1523,96174.0,96173.0,0.76131366]
[1746277592443,0.1523,96174.0,96173.0,0.69851366]
[1746277592645,0.1523,96174.0,96173.0,0.76131366]
[1746277595738,0.12,96174.0,96173.0,0.79171366]
[1746277596140,0.12,96174.0,96173.0,1.01171366]
[1746277598944,0.001,96186.0,96185.0,0.2078806]
[1746277599149,0.0331,96198.0,96196.0,0.2078568]
[1746277599345,0.062,96199.0,96196.0,0.3303768]
[1746277599542,0.11026347,96197.0,96196.0,0.3303768]
[1746277599738,0.11026347,96197.0,96196.0,0.3614768]
[1746277600144,0.23326347,96197.0,96196.0,0.3614768]
[1746277602451,0.1538,96197.0,96196.0,0.3614768]
[1746277602950,0.1498,96197.0,96196.0,0.3614768]
[1746277604351,0.1498,96197.0,96196.0,0.3946768]
[1746277605254,0.1498,96197.0,96196.0,0.40517233]
[1746277611251,0.1498,96197.0,96196.0,0.34265233]
[1746277611557,0.1498,96197.0,96196.0,0.31197233]
[1746277613857,0.1498,96197.0,96196.0,0.3014768]
[1746277614157,0.1498,96197.0,96196.0,0.2389568]
[1746277614352,0.1498,96197.0,96196.0,0.3014768]
[1746277616160,0.1498,96197.0,96196.0,0.31213709]
[1746277617753,0.1498,96197.0,96196.0,0.3014768]
[1746277624768,0.1498,96197.0,96196.0,0.3414768]
[1746277625267,0.1498,96197.0,96196.0,0.3014768]
[1746277625463,0.1498,96197.0,96196.0,0.3514768]
[1746277625859,0.1498,96197.0,96196.0,0.3014768]
[1746277626060,0.1498,96197.0,96196.0,0.3414768]
[1746277626353,0.1498,96197.0,96196.0,0.3014768]
[1746277630663,0.1498,96197.0,96196.0,0.3342768]
[1746277630866,0.1498,96197.0,96196.0,0.6950768]
[1746277632463,0.1498,96197.0,96196.0,0.6325568]
[1746277632670,0.1498,96197.0,96196.0,0.6953968]
[1746277634274,0.1498,96197.0,96196.0,0.7353968]
[1746277634770,0.1498,96197.0,96196.0,0.6953968]
[1746277634970,0.1498,96197.0,96196.0,0.7353968]
[1746277635272,0.1498,96197.0,96196.0,0.8053968]
[1746277640374,0.1498,96197.0,96196.0,0.4445968]
[1746277640564,0.1498,96197.0,96196.0,0.8053968]
[1746277640765,0.1498,96197.0,96196.0,0.4445968]
[1746277640966,0.1498,96197.0,96196.0,0.8053968]
[1746277645175,0.1498,96197.0,96196.0,0.85456588]
[1746277651178,0.119,96197.0,96196.0,0.85456588]
[1746277654174,0.119,96197.0,96196.0,0.79172588]
[1746277654373,0.119,96197.0,96196.0,0.85456588]
[1746277654779,0.119,96197.0,96196.0,0.8053968]
[1746277655881,0.119,96197.0,96196.0,0.4445968]
[1746277656074,0.119,96197.0,96196.0,0.8053968]